bitfinex/quotes_ETHUSD_20250518
["timestamp","ask_amount","ask_price","bid_price","bid_amount"]
[1747551620478,7.628,2497.5,2497.2,0.82285577]
[1747551620966,7.628,2497.5,2497.2,4.8273327]
[1747551622170,7.628,2497.5,2497.3,0.38234473]
[1747551622579,7.628,2497.5,2497.3,4.38666419]
[1747551622731,12.45734445,2497.9,2497.3,4.38666419]
[1747551622932,12.45734445,2497.9,2497.4,0.95962543]
[1747551623361,4.00367546,2497.8,2497.4,0.95962543]
[1747551623532,4.0038001,2497.7,2497.3,0.38234473]
[1747551624079,7.628,2497.9,2497.3,0.38234473]
[1747551624249,4.83006433,2497.4,2497.3,0.38234473]
[1747551624657,12.45706433,2497.4,2497.3,0.38234473]
[1747551625269,8.4529,2497.4,2497.3,0.38234473]
[1747551625473,12.45706433,2497.4,2497.3,0.38234473]
[1747551626030,8.4529,2497.4,2497.3,0.38234473]
[1747551626481,8.4529,2497.4,2497.0,4.86425674]
[1747551626482,0.8259,2497.4,2497.0,4.86425674]
[1747551626662,7.659,2497.5,2497.2,4.00437815]
[1747551626663,7.628,2497.3,2497.2,4.00437815]
[1747551626974,7.628,2497.3,2497.1,4.76919242]
[1747551627351,7.628,2497.3,2497.1,4.00459242]
[1747551627554,4.82981725,2497.6,2497.1,4.00459242]
[1747551627769,15.287,2497.5,2497.1,4.00459242]
[1747551628384,15.287,2497.5,2497.2,0.38234473]
[1747551629276,15.287,2497.5,2497.2,4.38680225]
[1747551629277,7.628,2497.5,2497.2,4.38680225]
[1747551629452,15.282,2497.5,2497.2,0.38234473]
[1747551630093,15.282,2497.5,2497.2,4.38682313]
[1747551630291,15.282,2497.5,2497.2,0.38234473]
[1747551631675,15.282,2497.5,2497.2,4.38682196]
[1747551633453,15.282,2497.5,2497.3,0.38234473]
[1747551635886,15.282,2497.5,2497.2,0.38234473]
[1747551636080,19.28604535,2497.5,2497.2,0.38234473]
[1747551636547,4.00419452,2497.4,2497.2,0.38234473]
[1747551637246,4.00418397,2497.4,2497.2,0.38234473]
[1747551637449,4.00418397,2497.4,2497.0,0.38234473]
[1747551638151,21.69764109,2497.5,2497.0,0.38234473]
[1747551638794,4.00416862,2497.4,2497.0,0.38234473]
[1747551638993,4.00416433,2497.4,2497.0,0.38234473]
[1747551639356,4.00437149,2497.3,2497.0,0.38234473]
[1747551639666,0.8217,2497.2,2497.0,0.38234473]
[1747551640057,19.28607653,2497.5,2497.0,0.38234473]
[1747551640258,4.00417639,2497.4,2497.0,0.38234473]
[1747551640497,4.00417639,2497.4,2496.9,4.38719881]
[1747551641657,4.00432797,2497.3,2496.9,0.38234473]
[1747551642072,4.00432797,2497.3,2497.0,0.38234473]
[1747551642399,6.41541064,2497.4,2497.0,0.38234473]
[1747551642977,6.41541064,2497.4,2497.0,0.37947938]
[1747551643178,4.00464538,2497.1,2497.0,0.37947938]
[1747551643385,5.7010706,2497.1,2497.0,0.37947938]
[1747551643758,6.2510706,2497.1,2497.0,0.37947938]
[1747551644293,0.8141,2496.7,2496.4,0.47715157]
[1747551644466,15.289,2496.6,2496.4,0.47715157]
[1747551645200,19.29445995,2496.6,2496.4,0.47715157]
[1747551645390,15.289,2496.6,2496.4,0.47715157]
[1747551646663,17.29984363,2496.6,2496.4,0.47715157]
[1747551646976,4.00560785,2496.5,2496.4,0.47715157]
[1747551647176,21.30537012,2496.6,2496.4,0.47715157]
[1747551647378,4.00560785,2496.5,2496.0,4.78262055]
[1747551648178,19.29452609,2496.6,2496.0,4.78262055]
[1747551648386,19.29452609,2496.6,2496.0,5.70925838]
[1747551648589,15.289,2496.6,2496.1,4.006197]
[1747551649468,15.289,2496.6,2496.0,1.70293783]
[1747551649668,15.289,2496.6,2496.1,4.00624974]
[1747551649868,19.29448581,2496.6,2496.0,4.78266099]
[1747551650163,4.00580211,2496.4,2496.0,0.7763]
[1747551650365,4.00634923,2496.1,2495.9,0.47715157]
[1747551650570,0.48083492,2496.1,2495.9,0.47715157]
[1747551650881,7.655,2496.1,2495.7,4.00687949]
[1747551651394,7.655,2496.1,2495.8,4.00672345]
[1747551651603,7.655,2496.1,2495.8,4.00665781]
[1747551652278,7.655,2496.1,2495.6,0.7536]
[1747551653015,7.655,2496.1,2496.0,4.82831025]
[1747551653161,0.802,2496.5,2496.0,4.82831025]
[1747551653363,15.284,2496.4,2496.0,0.8219]
[1747551654186,15.284,2496.4,2496.0,4.82829369]
[1747551654400,7.656,2496.4,2496.2,4.00608784]
[1747551654562,8.01709179,2496.6,2496.2,4.00608784]
[1747551654764,14.413,2496.9,2496.6,4.0054267]
[1747551655002,7.656,2497.0,2496.6,4.0054267]
[1747551655185,7.656,2497.0,2496.7,4.00527888]
[1747551655685,7.656,2497.0,2496.9,4.00496615]
[1747551656020,11.66081318,2497.0,2496.5,0.8219]
[1747551656219,1.98248132,2496.9,2496.2,0.8219]
[1747551656419,4.00522064,2496.8,2496.2,4.82797261]
[1747551656604,5.98746109,2496.9,2496.3,4.00580569]
[1747551656803,7.655,2496.8,2496.4,4.00567561]
[1747551657007,7.655,2496.8,2496.4,4.00568543]
[1747551657170,7.6535,2496.8,2496.3,4.00585999]
[1747551657375,7.6535,2496.8,2496.2,4.82796038]
[1747551657578,0.8164,2496.7,2496.4,0.38232518]
[1747551657813,4.00560785,2496.5,2496.4,0.38232518]
[1747551659497,4.00560785,2496.5,2496.1,0.47715157]
[1747551659723,7.653,2496.4,2496.1,0.47715157]
[1747551660015,7.655,2496.5,2496.2,4.82786895]
[1747551660403,7.655,2496.5,2496.2,4.82795277]
[1747551660607,7.655,2496.5,2496.4,4.0057683]
[1747551661019,0.8164,2497.2,2496.6,0.8219]
[1747551661218,7.655,2497.1,2497.0,4.00480576]
[1747551661419,7.655,2497.1,2497.0,4.82670576]
[1747551661619,7.655,2497.1,2497.0,0.8219]
[1747551662522,7.655,2497.1,2496.3,8.53051043]
[1747551662817,7.655,2497.1,2496.6,0.8219]
[1747551662818,4.0048161,2497.0,2496.6,0.8219]
[1747551663018,8.4714,2497.1,2496.6,0.8219]
[1747551663019,12.47610736,2497.1,2496.6,0.8219]
[1747551663324,8.4714,2497.1,2496.6,0.8219]
[1747551663500,7.654,2497.1,2496.8,4.00512656]
[1747551663697,7.654,2497.1,2496.9,4.00492492]
[1747551664025,7.654,2497.1,2497.0,4.82670576]
[1747551665122,4.00506763,2496.9,2496.5,0.47715157]
[1747551665291,7.674,2496.9,2496.6,4.0053267]
[1747551665486,7.674,2496.9,2496.5,0.47715157]
[1747551665487,7.654,2496.9,2496.5,0.47715157]
[1747551665822,14.41000479,2496.9,2496.5,0.47715157]
[1747551666220,7.654,2496.9,2496.5,0.47715157]
[1747551666526,7.654,2496.9,2496.5,4.48275383]
[1747551667187,7.654,2496.9,2496.5,0.47715157]
[1747551667392,11.65909479,2496.9,2496.5,0.47715157]
[1747551667695,4.00452852,2497.2,2496.6,4.00542825]
[1747551667894,4.00482092,2497.0,2496.5,0.38273333]
[1747551668106,4.00480576,2497.0,2496.5,0.38273333]
[1747551668395,0.8013,2496.9,2496.5,0.38273333]
[1747551669218,4.00487192,2497.0,2496.5,4.3883063]
[1747551669536,4.00487192,2497.0,2496.6,0.38273333]
[1747551669708,15.335,2496.9,2496.6,0.38273333]
[1747551670098,4.00518495,2496.8,2496.6,0.38273333]
[1747551670931,0.8013,2497.1,2496.6,0.38273333]
[1747551671119,7.654,2497.0,2496.9,4.00496615]
[1747551671324,7.654,2497.1,2496.9,4.00496615]
[1747551672435,7.654,2497.1,2497.0,0.38273333]
[1747551673736,14.41097848,2497.1,2497.0,0.38273333]
[1747551675337,4.82278697,2496.7,2496.6,0.47715157]
[1747551675534,12.50978697,2496.7,2496.6,0.47715157]
[1747551676335,4.00558327,2496.6,2496.0,4.77268109]
[1747551676508,7.653,2496.5,2496.1,0.52498327]
[1747551677033,4.00578602,2496.4,2496.1,0.52498327]
[1747551677406,4.00592877,2496.3,2496.2,0.38289813]
[1747551677731,7.653,2496.5,2496.2,0.38289813]
[1747551677732,7.654,2496.5,2496.2,0.38289813]
[1747551678044,7.654,2496.6,2496.3,0.8114]
[1747551678564,7.654,2496.8,2496.4,4.00566552]
[1747551678844,7.654,2496.8,2496.3,4.81726048]
[1747551679003,7.654,2496.8,2496.4,0.52001586]
[1747551679841,7.654,2496.8,2496.4,4.52578077]
[1747551680339,7.654,2496.8,2496.4,0.52001586]
[1747551681628,7.654,2496.8,2496.5,0.38298947]
[1747551681936,7.654,2496.8,2496.7,0.8114]
[1747551682101,7.654,2496.8,2496.7,5.33665872]
[1747551682517,7.687,2497.3,2496.7,5.33665872]
[1747551682722,7.654,2497.2,2497.0,4.00470449]
[1747551683319,7.654,2497.2,2497.1,0.38298947]
[1747551683552,4.00407536,2497.5,2497.1,0.38298947]
[1747551683861,7.654,2497.2,2497.1,0.38298947]
[1747551685353,7.654,2497.2,2497.0,0.38298947]
[1747551686569,15.204,2497.6,2497.0,0.38298947]
[1747551686862,15.204,2497.6,2497.1,4.00463807]
[1747551686863,7.653,2497.3,2497.1,4.00463807]
[1747551687364,7.653,2497.3,2497.2,4.82188502]
[1747551688765,7.653,2497.3,2497.2,5.20487449]
[1747551688966,7.653,2497.3,2497.2,1.20038947]
[1747551689172,12.42262467,2497.3,2497.2,0.38298947]
[1747551690868,4.00457922,2497.2,2496.9,0.47715157]
[1747551691981,11.65743169,2497.3,2496.9,0.47715157]
[1747551692286,7.653,2497.3,2496.9,4.48210702]
[1747551692486,7.653,2497.3,2497.0,0.8236]
[1747551692986,7.653,2497.3,2497.0,1.30645554]
[1747551693271,7.653,2497.3,2497.2,4.00448502]
[1747551693478,7.669,2497.5,2497.2,4.00440315]
[1747551693635,14.417,2497.6,2497.3,4.00432373]
[1747551693835,7.669,2497.5,2497.4,0.787]
[1747551694041,7.669,2497.5,2497.2,4.79142148]
[1747551694247,7.669,2497.5,2497.2,0.787]
[1747551694655,7.669,2497.5,2497.2,4.79147377]
[1747551695475,7.669,2497.5,2497.3,4.00431511]
[1747551695685,7.669,2497.5,2497.4,4.00416433]
[1747551695886,7.669,2497.5,2497.4,4.79116433]
[1747551696258,7.669,2497.5,2497.4,5.17390783]
[1747551696447,7.669,2497.5,2497.4,13.17390783]
[1747551696648,7.669,2497.5,2497.4,14.98452094]
[1747551696982,7.669,2497.9,2497.7,4.00353778]
[1747551697187,7.669,2497.9,2497.8,4.0035231]
[1747551697697,7.669,2497.9,2497.8,5.1523666]
[1747551698152,22.082,2498.3,2497.8,1.1488435]
[1747551698354,22.082,2498.3,2498.1,4.00293855]
[1747551698564,7.669,2498.3,2498.2,4.76898207]
[1747551698746,7.669,2498.3,2498.2,0.7661]
[1747551700277,4.00290699,2498.2,2497.7,1.24325157]
[1747551700671,4.00290699,2498.2,2497.7,3.7981671]
[1747551700876,8.4721,2498.3,2497.7,3.7981671]
[1747551701056,4.80554197,2498.5,2497.9,4.00332975]
[1747551701267,15.333,2498.4,2497.9,4.00322108]
[1747551701877,0.8031,2498.5,2497.9,4.00322108]
[1747551702082,7.667,2498.4,2498.1,0.7661]
[1747551702305,7.667,2498.4,2498.2,4.00288127]
[1747551702597,7.667,2498.5,2498.2,4.00279702]
[1747551702784,7.667,2498.6,2498.2,4.00279702]
[1747551703354,7.667,2498.6,2498.2,4.00283027]
[1747551703590,22.081,2499.0,2498.4,0.7995]
[1747551703770,22.081,2499.0,2498.3,0.47689303]
[1747551703771,7.667,2498.9,2498.3,0.47689303]
[1747551703985,4.00201631,2498.8,2498.2,4.80237569]
[1747551704360,11.66883571,2498.9,2498.3,4.00268656]
[1747551704558,4.00222222,2498.7,2498.2,0.7995]
[1747551704754,4.00199346,2498.8,2498.2,0.7995]
[1747551704960,4.00199346,2498.8,2498.3,4.00271864]
[1747551705254,11.66880866,2498.9,2498.3,4.8832442]
[1747551705490,11.66880866,2498.9,2498.3,0.88052556]
[1747551705656,4.00208762,2498.7,2498.3,0.88052556]
[1747551705860,4.00199593,2498.8,2498.3,4.88324416]
[1747551706257,7.667,2498.7,2498.4,4.57079867]
[1747551706697,7.667,2498.7,2498.3,0.88052556]
[1747551707071,11.66914417,2498.7,2498.3,0.88052556]
[1747551707902,4.79879362,2498.6,2498.0,4.00308516]
[1747551708061,4.00264097,2498.4,2497.9,0.7763]
[1747551708260,4.00256163,2498.4,2497.9,0.7763]
[1747551708881,0.7965,2498.6,2497.9,0.7763]
[1747551709090,7.678,2498.5,2497.7,1.25345157]
[1747551709293,4.00264073,2498.4,2497.8,4.00340234]
[1747551709492,7.678,2498.5,2497.9,4.92933535]
[1747551709687,7.678,2498.5,2498.1,4.0030163]
[1747551709888,7.678,2498.5,2498.0,4.77943464]
[1747551710215,4.00265078,2498.4,2498.0,0.7763]
[1747551710395,11.68044893,2498.5,2498.0,0.7763]
[1747551710592,7.678,2498.5,2498.0,4.77945806]
[1747551710913,7.678,2498.5,2498.1,4.480978]
[1747551711099,7.667,2498.7,2498.2,4.00285454]
[1747551711100,7.666,2498.4,2498.2,4.00285454]
[1747551711303,7.666,2498.6,2498.2,4.00285454]
[1747551711511,7.666,2498.6,2498.1,4.48092224]
[1747551711989,7.666,2498.6,2498.2,4.0028724]
[1747551712172,7.666,2498.6,2498.3,0.44808182]
[1747551712606,7.666,2498.6,2498.3,4.45077521]
[1747551712807,7.666,2498.6,2498.4,0.7903]
[1747551713006,8.01709179,2499.4,2498.4,0.7903]
[1747551713189,4.00145694,2499.1,2498.6,4.00213439]
[1747551713383,11.66713912,2499.3,2498.7,0.47924344]
[1747551713384,4.00165059,2499.0,2498.7,0.47924344]
[1747551713583,4.00201695,2498.8,2498.3,0.7903]
[1747551713801,11.66701695,2498.8,2498.3,0.7903]
[1747551714203,7.665,2498.8,2498.3,0.7903]
[1747551714391,4.7955895,2498.7,2498.3,0.7903]
[1747551714585,4.79551795,2498.7,2498.3,0.7903]
[1747551714786,0.7934,2498.7,2498.0,0.7903]
[1747551714985,0.7934,2498.7,2498.2,4.00287293]
[1747551715190,0.7934,2498.7,2498.3,0.40028729]
[1747551715611,11.66697435,2498.8,2498.3,0.40028729]
[1747551717015,4.00212007,2498.7,2498.3,0.40028729]
[1747551717209,4.00212007,2498.7,2498.1,4.00300023]
[1747551718215,4.00225029,2498.6,2498.0,8.7903]
[1747551718393,4.00215654,2498.7,2498.1,4.00300295]
[1747551718595,4.00215654,2498.7,2498.2,1.2793303]
[1747551719429,11.66693232,2498.8,2498.2,5.2821745]
[1747551719430,11.66693089,2498.8,2498.2,5.2821745]
[1747551719954,4.00195307,2498.8,2498.3,4.00265005]
[1747551720215,4.00224125,2498.6,2498.0,0.8029]
[1747551720380,7.701,2498.7,2498.0,5.28659108]
[1747551720581,4.00268809,2498.4,2498.0,1.28351648]
[1747551720822,4.00268809,2498.4,2497.7,0.47715157]
[1747551720823,4.0026683,2498.4,2497.8,4.00346636]
[1747551721034,4.00368338,2497.7,2497.6,0.47715157]
[1747551721234,7.701,2497.7,2497.6,0.47715157]
[1747551723859,0.8242,2498.2,2497.6,0.47715157]
[1747551723860,0.8242,2498.2,2497.7,0.7907]
[1747551724155,0.7587,2498.5,2498.1,4.00302326]
[1747551724351,30.88379179,2498.9,2498.2,1.19100233]
[1747551724648,4.00192092,2498.8,2498.2,1.19100233]
[1747551724858,4.00216966,2498.7,2498.2,5.19384953]
[1747551725029,4.00216966,2498.7,2498.3,0.51938495]
[1747551725414,4.00216966,2498.7,2498.4,0.38229425]
[1747551725726,4.76110144,2498.5,2498.4,0.38229425]
[1747551727066,4.00299228,2498.2,2497.8,0.38229425]
[1747551727213,7.701,2498.1,2497.8,0.38229425]
[1747551727413,7.701,2498.1,2497.8,0.89997234]
[1747551728030,7.701,2498.1,2497.8,4.90345748]
[1747551728655,4.00320256,2498.0,2497.9,0.38229425]
[1747551729822,4.00320256,2498.0,2497.6,0.38229425]
[1747551730326,4.00320256,2498.0,2497.7,4.00355999]
[1747551730327,7.701,2498.0,2497.7,4.00355999]
[1747551730542,7.701,2498.0,2497.6,0.38229425]
[1747551730723,11.70431446,2498.0,2497.6,0.38229425]
[1747551730922,11.70431446,2498.0,2497.6,0.8999999]
[1747551731745,7.701,2498.0,2497.6,0.8999999]
[1747551732379,7.701,2498.0,2497.6,4.9037801]
[1747551732525,4.76103803,2498.6,2498.0,4.00305484]
[1747551732726,15.494,2498.5,2498.0,4.00305484]
[1747551733037,19.49641334,2498.5,2498.0,4.48243032]
[1747551733232,19.49641334,2498.5,2498.0,0.47937548]
[1747551733462,19.49641334,2498.5,2498.0,4.48254917]
[1747551733830,11.70441334,2498.5,2498.0,4.48254917]
[1747551734274,11.70441334,2498.5,2498.1,0.38250328]
[1747551734982,4.00270501,2498.4,2498.1,0.38250328]
[1747551735169,4.00288207,2498.2,2498.1,0.38250328]
[1747551736569,4.00276139,2498.3,2497.8,4.79414318]
[1747551737171,4.00288982,2498.2,2497.8,0.7907]
[1747551737379,4.00308933,2498.1,2497.8,0.7907]
[1747551738263,4.0029495,2498.2,2497.8,0.7907]
[1747551738820,4.00260712,2498.4,2497.8,0.7907]
[1747551738821,4.00272185,2498.3,2497.8,0.7907]
[1747551739025,4.00299206,2498.2,2497.8,0.7907]
[1747551739323,7.702,2498.1,2497.9,4.003281]
[1747551739498,7.702,2498.1,2498.0,0.4793981]
[1747551739692,7.702,2498.1,2498.0,4.48260066]
[1747551740008,7.702,2498.1,2498.0,0.4793981]
[1747551741633,7.702,2498.1,2498.0,0.86199023]
[1747551742227,11.70504231,2498.1,2498.0,0.38259213]
[1747551744145,11.70504231,2498.1,2497.7,0.38259213]
[1747551745139,4.00304231,2498.1,2497.7,0.38259213]
[1747551745345,7.702,2498.1,2497.8,0.7681]
[1747551745648,7.702,2498.1,2497.9,4.003353]
[1747551745827,7.702,2498.1,2498.0,0.4771453]
[1747551746734,4.0025864,2498.4,2498.0,0.85973743]
[1747551746897,7.702,2498.3,2498.0,0.85973743]
[1747551747850,11.70477666,2498.3,2498.0,0.38259213]
[1747551748143,4.00288207,2498.2,2498.0,0.38259213]
[1747551748301,4.00288207,2498.2,2497.9,0.38259213]
[1747551750645,11.70481579,2498.3,2497.9,0.38259213]
[1747551750942,4.00290137,2498.2,2497.9,0.38259213]
[1747551752412,7.702,2498.3,2497.9,0.38259213]
[1747551752620,11.70472294,2498.3,2497.9,0.89802916]
[1747551753347,11.70472294,2498.3,2498.0,0.38259213]
[1747551753650,4.00288687,2498.2,2498.0,0.38259213]
[1747551753797,4.00304231,2498.1,2498.0,0.38259213]
[1747551754537,4.00294718,2498.2,2498.0,0.38259213]
[1747551754840,11.70480149,2498.3,2498.0,0.38259213]
[1747551755132,7.702,2498.3,2498.0,0.38259213]
[1747551755496,4.00290174,2498.2,2497.9,0.38259213]
[1747551755723,11.70480073,2498.3,2497.9,0.92026541]
[1747551757042,4.00290151,2498.2,2498.0,0.38259213]
[1747551758124,4.00304231,2498.1,2498.0,0.38259213]
[1747551758829,4.00327156,2498.0,2497.8,0.38259213]
[1747551760042,4.00327156,2498.0,2497.7,0.38259213]
[1747551760742,4.0035231,2497.8,2497.7,0.38259213]
[1747551760946,12.5600231,2497.8,2497.7,0.38259213]
[1747551762348,4.00368338,2497.7,2497.4,0.38259213]
[1747551763539,4.00368338,2497.7,2497.3,0.38259213]
[1747551763706,11.76459774,2497.8,2497.3,0.38259213]
[1747551763905,11.76459774,2497.8,2497.3,0.94558479]
[1747551764247,11.76459774,2497.8,2497.3,4.94984254]
[1747551764945,4.00359774,2497.8,2497.3,0.94558479]
[1747551765144,7.762,2497.7,2497.3,0.94558479]
[1747551765348,7.762,2497.7,2497.4,0.38259213]
[1747551766454,7.762,2497.7,2497.4,0.95416124]
[1747551767230,7.762,2497.7,2497.5,0.38259213]
[1747551767753,4.00384368,2497.6,2497.5,0.38259213]
[1747551768452,4.00384368,2497.6,2497.3,0.38259213]
[1747551768790,11.76576342,2497.7,2497.3,0.38259213]
[1747551770023,4.00387886,2497.6,2497.3,0.38259213]
[1747551770260,11.76573769,2497.7,2497.3,0.38259213]
[1747551770448,4.00385877,2497.6,2497.3,0.38259213]
[1747551770948,11.76572686,2497.7,2497.3,0.38259213]
[1747551771246,4.00416433,2497.4,2497.3,0.38259213]
[1747551771451,4.83116433,2497.4,2496.8,0.47715157]
[1747551771758,4.83196615,2496.9,2496.8,0.47715157]
[1747551771932,12.59396615,2496.9,2496.8,0.47715157]
[1747551772136,14.25384509,2496.9,2496.8,0.47715157]
[1747551772335,22.80384509,2496.9,2496.8,0.47715157]
[1747551773563,4.00624974,2496.1,2496.0,0.38271767]
[1747551773772,11.77024974,2496.1,2496.0,0.38271767]
[1747551773967,7.764,2496.1,2496.0,0.38271767]
[1747551775330,7.764,2496.1,2495.9,0.7959]
[1747551776329,14.413,2496.6,2495.9,0.7959]
[1747551776677,19.48770435,2496.5,2495.9,5.33433786]
[1747551776972,4.00596492,2496.3,2495.9,1.32788146]
[1747551778788,19.48770435,2496.5,2495.9,1.32788146]
[1747551778789,4.00581745,2496.4,2495.9,1.32788146]
[1747551778938,4.00581745,2496.4,2495.9,5.33441922]
[1747551779346,7.765,2496.5,2495.9,5.33429218]
[1747551779546,7.709,2496.4,2495.9,5.33440596]
[1747551779751,7.709,2496.4,2496.0,4.00639722]
[1747551780557,14.413,2496.6,2496.1,0.7633]
[1747551780849,8.01709179,2496.7,2496.3,4.76916985]
[1747551781073,8.01709179,2496.7,2496.4,4.00569884]
[1747551781385,7.765,2496.8,2496.4,4.00569884]
[1747551781584,7.765,2496.8,2496.3,0.7633]
[1747551781744,4.0045336,2497.2,2496.6,4.00528738]
[1747551781940,15.478,2497.1,2496.7,4.00519702]
[1747551782145,14.416,2497.3,2496.8,0.7633]
[1747551782377,7.711,2497.2,2496.8,0.7633]
[1747551783056,4.00481513,2497.0,2496.6,1.20192874]
[1747551783254,4.00497932,2496.9,2496.6,1.20192874]
[1747551783442,4.00534249,2496.7,2496.2,4.80748658]
[1747551783643,11.71634249,2496.7,2496.2,4.80748658]
[1747551784048,11.71634249,2496.7,2496.2,0.8014]
[1747551784453,0.7858,2497.1,2496.3,4.00592877]
[1747551784657,15.433,2497.0,2496.5,4.00557588]
[1747551784844,15.433,2497.0,2496.5,4.40613347]
[1747551785474,7.712,2496.9,2496.7,4.00512703]
[1747551785792,7.712,2497.2,2497.0,0.8014]
[1747551786278,7.712,2497.2,2496.8,4.0050602]
[1747551786279,11.71650844,2497.2,2496.8,0.8014]
[1747551787360,4.00471755,2497.1,2496.8,0.8014]
[1747551787966,4.00474807,2497.1,2496.6,0.8175]
[1747551788166,4.00464538,2497.1,2496.6,0.8175]
[1747551788405,11.71653608,2497.2,2496.6,6.14527565]
[1747551789596,4.00480343,2497.1,2496.6,2.13986531]
[1747551790094,4.00480343,2497.1,2496.6,6.14530309]
[1747551790291,11.71655349,2497.2,2496.6,2.13986531]
[1747551790597,4.00503055,2496.9,2496.4,0.8175]
[1747551790890,4.00488007,2497.0,2496.5,4.00560176]
[1747551791089,4.00488007,2497.0,2496.4,0.8175]
[1747551791090,4.00497448,2496.9,2496.4,4.82321297]
[1747551791305,4.00469612,2497.1,2496.4,4.82325047]
[1747551791494,7.712,2497.2,2496.4,0.8175]
[1747551791672,7.727,2497.1,2496.7,4.00519861]
[1747551792193,7.727,2497.1,2496.6,4.00535485]
[1747551792411,7.712,2497.2,2496.6,4.88820112]
[1747551792614,14.416,2497.3,2497.0,4.00479255]
[1747551792904,7.711,2497.2,2497.0,4.00479255]
[1747551793264,7.711,2497.2,2497.1,4.00464538]
[1747551793697,7.711,2497.2,2497.0,4.00474075]
[1747551793997,7.711,2497.2,2497.0,4.88470334]
[1747551794876,7.711,2497.2,2497.0,0.87996259]
[1747551795810,14.416,2497.3,2497.0,0.87996259]
[1747551796000,7.711,2497.2,2497.0,0.87996259]
[1747551801215,7.711,2497.2,2496.8,0.7898]
[1747551801596,4.00466815,2497.1,2496.7,8.0]
[1747551802008,4.00466815,2497.1,2496.8,0.38227921]
[1747551803409,4.00466815,2497.1,2496.6,5.64672014]
[1747551803808,0.7872,2497.0,2496.6,0.88284627]
[1747551804126,4.00523225,2496.8,2496.4,1.23565157]
[1747551804425,7.71,2496.7,2496.4,1.23565157]
[1747551804622,7.71,2496.7,2496.4,0.47715157]
[1747551804923,4.00560785,2496.5,2496.4,0.47715157]
[1747551806927,4.00592877,2496.3,2496.0,0.38288755]
[1747551807224,7.711,2496.2,2496.0,0.38288755]
[1747551807419,11.71709991,2496.2,2496.0,0.38288755]
[1747551807588,7.711,2496.2,2496.0,0.38288755]
[1747551808086,11.71709513,2496.2,2496.0,0.38288755]
[1747551808900,11.71709513,2496.2,2496.1,0.38288755]
[1747551809097,11.71708925,2496.2,2496.1,0.38288755]
[1747551809425,14.05877952,2496.2,2496.1,0.38288755]
[1747551809724,11.71708925,2496.2,2496.1,0.38288755]
[1747551810387,7.711,2496.2,2496.1,0.38288755]
[1747551810587,7.711,2496.2,2495.8,0.7585]
[1747551811827,11.71709702,2496.2,2495.8,0.7585]
[1747551814401,7.711,2496.2,2495.8,0.7585]
[1747551814603,7.674,2496.2,2496.1,4.00616519]
[1747551814835,7.674,2496.2,2496.1,5.16268826]
[1747551815139,7.674,2496.2,2496.1,1.15652307]
[1747551815287,7.674,2496.2,2496.1,0.7519]
[1747551816413,7.674,2496.2,2496.1,4.75814974]
[1747551816743,0.7882,2497.0,2496.5,0.7519]
[1747551816908,7.674,2497.1,2496.6,4.04547895]
[1747551817114,7.674,2497.1,2496.7,0.47973789]
[1747551817296,7.674,2497.1,2496.5,4.75745295]
[1747551817297,7.674,2497.1,2496.6,4.00537891]
[1747551817714,7.674,2497.1,2496.5,4.75745295]
[1747551817715,19.20858916,2497.3,2496.8,4.00507263]
[1747551817913,19.20858916,2497.3,2496.7,4.00526156]
[1747551817914,15.353,2497.2,2496.7,4.00520991]
[1747551818877,15.353,2497.2,2496.8,4.00511962]
[1747551820047,19.35748972,2497.2,2496.5,0.7519]
[1747551820246,4.0047344,2497.1,2496.6,0.87519]
[1747551821150,4.0047344,2497.1,2496.6,4.8806269]
[1747551821518,4.00480953,2497.0,2496.6,0.87519]
[1747551821714,4.00507803,2496.9,2496.7,0.38222707]
[1747551822218,4.76208196,2497.0,2496.7,0.38222707]
[1747551823519,4.76208196,2497.0,2496.4,4.00573573]
[1747551823719,4.76208196,2497.0,2496.3,0.825]
[1747551823720,0.7572,2497.0,2496.5,0.48307357]
[1747551823916,8.4632,2497.2,2496.7,0.7524]
[1747551824149,18.42040418,2497.3,2496.7,0.7524]
[1747551824449,7.673,2497.1,2496.8,4.00509662]
[1747551824754,7.673,2497.1,2496.9,4.00485987]
[1747551825052,7.673,2497.4,2497.3,4.75672467]
[1747551825754,0.7892,2498.3,2497.8,4.00339334]
[1747551825961,11.67545433,2498.5,2497.9,4.75563978]
[1747551826116,7.673,2498.5,2498.0,4.0031316]
[1747551826320,7.673,2498.5,2498.0,8.0]
[1747551826541,7.673,2498.5,2498.1,4.00301836]
[1747551826959,7.673,2498.5,2498.1,4.52236522]
[1747551827249,7.673,2498.5,2498.2,4.00288036]
[1747551827551,7.673,2498.5,2498.1,0.51934686]
[1747551828922,7.673,2498.5,2498.1,4.52236518]
[1747551829457,7.671,2498.7,2498.2,0.8163]
[1747551829821,7.671,2498.7,2498.2,4.81914156]
[1747551830022,7.671,2498.7,2498.3,0.48191416]
[1747551830217,4.00241708,2498.5,2497.9,4.00327886]
[1747551830418,4.79229088,2498.6,2498.0,4.00311043]
[1747551830818,4.00240144,2498.5,2497.7,4.00358995]
[1747551831021,7.755,2498.4,2497.7,4.00358995]
[1747551831215,4.00275855,2498.3,2497.6,1.29345157]
[1747551831455,11.75762462,2498.4,2497.9,4.0033572]
[1747551831763,7.755,2498.4,2497.9,4.0033572]
[1747551832561,11.75756641,2498.4,2497.9,4.0033572]
[1747551832753,11.75756641,2498.4,2497.8,4.00341799]
[1747551833953,11.75756641,2498.4,2497.9,4.00335309]
[1747551834160,11.75756641,2498.4,2498.0,0.40033531]
[1747551835558,7.755,2498.4,2498.0,0.40033531]
[1747551835760,4.00247574,2498.5,2498.0,0.40033531]
[1747551835941,7.67,2498.3,2498.0,0.40033531]
[1747551836426,4.00290722,2498.2,2497.7,0.52973242]
[1747551836627,4.00313559,2498.1,2497.6,0.8163]
[1747551836841,4.79313559,2498.1,2497.5,4.00389882]
[1747551837049,4.79313559,2498.1,2497.4,0.8163]
[1747551837050,4.00330989,2498.0,2497.4,12.82042703]
[1747551837243,4.00330989,2498.0,2497.1,0.47715157]
[1747551837244,0.79,2498.1,2497.1,9.02345157]
[1747551837445,4.00329594,2498.0,2497.4,4.00406363]
[1747551838868,7.669,2498.0,2497.8,4.0035153]